bitfinex-derivatives/quotes_BTCF0:USTF0_20210108
["timestamp","ask_amount","ask_price","bid_price","bid_amount"]
[1610126921972,0.52225259,41224.0,41222.0,0.02990848]
[1610126922165,0.52225259,41224.0,41220.0,0.02990926]
[1610126922464,0.52225259,41224.0,41223.0,0.0002675]
[1610126922666,0.52225259,41224.0,41221.0,0.0002675]
[1610126922964,0.52225259,41224.0,41223.0,0.0002675]
[1610126923165,0.52225259,41224.0,41175.0,1.5]
[1610126923166,0.52225259,41224.0,41222.0,0.0002675]
[1610126923368,0.52225259,41224.0,41223.0,0.00026752]
[1610126923665,0.52225259,41224.0,41209.0,0.0299139]
[1610126925068,0.13632608,41210.0,41209.0,0.0299139]
[1610126925468,0.23590608,41210.0,41209.0,0.0299139]
[1610126927269,0.23590608,41210.0,41209.0,0.00026752]
[1610126927470,0.23590608,41210.0,41209.0,0.02991581]
[1610126927873,0.23590608,41210.0,41209.0,0.00026752]
[1610126930276,0.23590608,41210.0,41196.0,3.147]
[1610126930578,0.23590608,41210.0,41209.0,0.00026758]
[1610126930777,0.23590608,41210.0,41197.0,0.00026758]
[1610126931177,0.09958,41210.0,41209.0,0.00026761]
[1610126931380,3.4763,41217.0,41198.0,0.00026761]
[1610126931578,3.4763,41217.0,41209.0,0.00026761]
[1610126931980,3.4763,41217.0,41199.0,0.00026761]
[1610126932279,3.4763,41217.0,41210.0,0.00026761]
[1610126932579,3.4763,41217.0,41200.0,0.00026761]
[1610126932778,0.38592651,41224.0,41211.0,0.00026761]
[1610126933081,0.38592651,41224.0,41202.0,3.8344]
[1610126933282,0.13632608,41203.0,41202.0,3.8344]
[1610126933479,0.22076608,41203.0,41202.0,3.8344]
[1610126933680,0.22076608,41203.0,41202.0,3.83466762]
[1610126938293,0.22076608,41203.0,41202.0,0.00026762]
[1610126938493,4.24216608,41203.0,41183.0,3.3178]
[1610126938890,4.24216608,41203.0,41184.0,0.00027054]
[1610126939391,0.13632608,41185.0,41184.0,0.00027054]
[1610126939592,4.20792608,41185.0,41184.0,0.00027054]
[1610126939891,4.32740608,41185.0,41172.0,0.00027054]
[1610126940091,4.32740608,41185.0,41184.0,0.00027054]
[1610126940290,4.32740608,41185.0,41173.0,0.00027054]
[1610126940590,4.32740608,41185.0,41184.0,0.00027054]
[1610126940792,4.32740608,41185.0,41174.0,0.00027056]
[1610126941191,4.32740608,41185.0,41184.0,0.00027056]
[1610126941391,0.25580608,41185.0,41175.0,0.00027056]
[1610126941591,0.25580608,41185.0,41184.0,0.00027056]
[1610126941997,0.25580608,41185.0,41165.0,0.13632608]
[1610126941998,0.25580608,41185.0,41176.0,3.16997056]
[1610126942194,0.25580608,41185.0,41184.0,0.00027056]
[1610126942395,0.25580608,41185.0,41177.0,0.00027056]
[1610126942691,0.25580608,41185.0,41184.0,0.00027056]
[1610126942892,0.25580608,41185.0,41178.0,0.00027056]
[1610126943194,0.25580608,41185.0,41184.0,0.00027058]
[1610126943394,0.25580608,41185.0,41181.0,2.9815]
[1610126943895,0.25580608,41185.0,41182.0,0.00027058]
[1610126947196,0.25580608,41185.0,41181.0,2.9815]
[1610126949401,0.25580608,41185.0,41182.0,0.00027059]
[1610126953406,0.25580608,41185.0,41172.0,0.02994029]
[1610126953810,0.25580608,41185.0,41183.0,0.00027061]
[1610126954010,0.25580608,41185.0,41173.0,0.00027061]
[1610126954209,0.25580608,41185.0,41184.0,0.00027061]
[1610126954409,0.25580608,41185.0,41174.0,0.00027061]
[1610126954812,0.25580608,41185.0,41172.0,0.02994029]
[1610126955011,0.25580608,41185.0,41175.0,0.00027061]
[1610126955210,0.25580608,41185.0,41173.0,0.00027061]
[1610126955410,0.13632608,41176.0,41173.0,0.00027061]
[1610126955611,0.13632608,41176.0,41172.0,0.02994029]
[1610126955909,0.13632608,41176.0,41174.0,0.00027061]
[1610126956110,0.13632608,41176.0,41173.0,0.00027061]
[1610126956313,0.13632608,41176.0,41175.0,0.00027061]
[1610126957213,0.13632608,41176.0,41172.0,0.02994029]
[1610126957413,0.13632608,41176.0,41175.0,0.00027061]
[1610126957716,0.13632608,41176.0,41173.0,0.00027061]
[1610126957918,0.13632608,41176.0,41175.0,0.00027061]
[1610126958117,0.13632608,41176.0,41174.0,0.00027061]
[1610126958413,0.13632608,41176.0,41172.0,0.02994029]
[1610126958612,0.13632608,41176.0,41175.0,0.00027061]
[1610126958914,0.13632608,41176.0,41172.0,0.02994029]
[1610126963117,0.13632608,41176.0,41175.0,3.5457]
[1610126963620,0.13632608,41176.0,41175.0,3.57563953]
[1610126966023,0.13632608,41176.0,41175.0,3.63337673]
[1610126966940,0.11948,41185.0,41175.0,3.63337673]
[1610126967226,0.08444,41203.0,41175.0,3.63337673]
[1610126967424,0.2924,41205.0,41196.0,0.13632608]
[1610126967626,0.08473,41224.0,41196.0,0.13632608]
[1610126967924,0.2899,41227.0,41211.0,3.9875]
[1610126968525,0.2899,41227.0,41212.0,0.00027051]
[1610126969631,0.13632608,41213.0,41212.0,0.13659659]
[1610126970929,0.13632608,41213.0,41212.0,0.71139659]
[1610126975637,0.13632608,41213.0,41212.0,0.57507051]
[1610126978039,0.13632608,41213.0,41212.0,0.5748]
[1610126979046,0.13632608,41213.0,41199.0,0.08373]
[1610126979242,0.13632608,41213.0,41199.0,2.8239]
[1610126979542,0.12695,41227.0,41200.0,0.00027045]
[1610126980044,0.12695,41227.0,41209.0,3.3624]
[1610126980545,0.2872,41235.0,41209.0,3.3624]
[1610126981548,0.13632608,41210.0,41209.0,3.3624]
[1610126982046,0.13632608,41210.0,41209.0,3.36267044]
[1610126993457,0.13632608,41210.0,41209.0,3.39231325]
[1610126999063,0.13632608,41210.0,41209.0,0.02991325]
[1610126999363,0.2872,41235.0,41209.0,0.02991325]
[1610126999767,0.13632608,41210.0,41209.0,0.02991325]
[1610127010778,0.13632608,41210.0,41198.0,3.6225]
[1610127010978,0.13632608,41210.0,41209.0,0.00026991]
[1610127011179,0.13632608,41210.0,41199.0,0.02992383]
[1610127012077,0.13632608,41200.0,41199.0,0.00026991]
[1610127012277,0.13632608,41200.0,41198.0,3.6225]
[1610127012680,0.13632608,41200.0,41199.0,0.00026992]
[1610127013078,0.13632608,41200.0,41199.0,0.02992464]
[1610127013378,0.13632608,41200.0,41199.0,0.00026992]
[1610127017382,0.13632608,41200.0,41198.0,3.6225]
[1610127017585,0.13632608,41200.0,41199.0,0.00026993]
[1610127018186,0.13632608,41200.0,41181.0,0.02992832]
[1610127018385,0.13632608,41200.0,41199.0,0.00026995]
[1610127018586,0.13632608,41200.0,41181.0,0.02965837]
[1610127018587,0.13632608,41200.0,41182.0,0.00026997]
[1610127018885,0.13632608,41200.0,41199.0,0.00026997]
[1610127019185,0.13632608,41200.0,41183.0,0.00026997]
[1610127019385,0.13632608,41200.0,41199.0,0.00026997]
[1610127019585,0.13632608,41200.0,41184.0,0.00026997]
[1610127019885,0.13632608,41185.0,41181.0,0.02992834]
[1610127020288,0.13632608,41185.0,41181.0,0.02965837]
[1610127020486,0.13632608,41185.0,41182.0,0.00026998]
[1610127021087,0.13632608,41185.0,41181.0,0.00026998]
[1610127021388,0.13632608,41185.0,41183.0,0.00026998]
[1610127021590,0.13632608,41185.0,41182.0,0.00026998]
[1610127021888,0.13632608,41185.0,41184.0,0.00026998]
[1610127022087,0.13632608,41185.0,41183.0,0.00026998]
[1610127022287,0.13632608,41185.0,41184.0,0.00027]
[1610127022787,0.13632608,41185.0,41181.0,0.00027]
[1610127022988,0.13632608,41185.0,41184.0,0.00027]
[1610127023389,0.13632608,41185.0,41181.0,0.00027]
[1610127023690,0.13632608,41185.0,41180.0,2.7607]
[1610127023691,0.13632608,41185.0,41184.0,0.00027]
[1610127023890,0.13632608,41185.0,41182.0,0.00027]
[1610127024089,0.13632608,41185.0,41184.0,0.00027]
[1610127024490,0.13632608,41185.0,41183.0,0.00027]
[1610127024691,0.13632608,41185.0,41184.0,0.00027]
[1610127025192,0.13632608,41185.0,41180.0,2.7607]
[1610127025392,0.13632608,41185.0,41184.0,0.00027]
[1610127025791,0.13632608,41185.0,41181.0,0.00027]
[1610127025992,0.13632608,41185.0,41184.0,0.00027]
[1610127026192,0.13632608,41185.0,41182.0,0.00027004]
[1610127026493,0.13632608,41185.0,41184.0,0.00027004]
[1610127026694,0.13632608,41185.0,41183.0,0.00027004]
[1610127026995,0.13632608,41185.0,41181.0,0.00027004]
[1610127027193,0.13632608,41185.0,41184.0,0.00027004]
[1610127027493,0.13632608,41185.0,41181.0,0.00027004]
[1610127027793,0.13632608,41185.0,41184.0,0.00027004]
[1610127027994,0.13632608,41185.0,41182.0,0.00027004]
[1610127028495,0.13632608,41185.0,41181.0,0.00027004]
[1610127028794,0.13632608,41185.0,41180.0,2.7607]
[1610127028795,0.13632608,41185.0,41182.0,0.00027004]
[1610127029196,0.13632608,41185.0,41181.0,0.00027004]
[1610127029395,0.13632608,41185.0,41183.0,0.00027004]
[1610127029694,0.13632608,41185.0,41182.0,0.00027004]
[1610127029993,0.13632608,41185.0,41180.0,2.7607]
[1610127029994,0.13632608,41185.0,41184.0,0.00027004]
[1610127030194,0.13632608,41185.0,41180.0,2.7607]
[1610127030394,0.13632608,41185.0,41184.0,0.00027005]
[1610127030595,0.13606557,41185.0,41184.0,0.00027005]
[1610127030796,0.13606557,41185.0,41181.0,0.00027005]
[1610127030995,0.13606557,41185.0,41184.0,0.00027005]
[1610127031195,0.13606557,41185.0,41182.0,0.00027005]
[1610127031497,0.13606557,41185.0,41184.0,0.00027005]
[1610127031696,0.13606557,41185.0,41183.0,0.00027005]
[1610127031895,0.13606557,41185.0,41184.0,2.9256]
[1610127032300,0.13606557,41185.0,41184.0,2.92587005]
[1610127032798,0.44613621,41185.0,41184.0,2.92587005]
[1610127033299,0.44613621,41185.0,41184.0,0.00027005]
[1610127033900,0.44613621,41185.0,41180.0,0.00027005]
[1610127034200,0.44613621,41185.0,41184.0,0.00027005]
[1610127034400,0.44613621,41185.0,41181.0,0.00027005]
[1610127034600,0.44613621,41185.0,41184.0,0.00027005]
[1610127034901,0.44613621,41185.0,41182.0,0.00027005]
[1610127035202,0.44613621,41185.0,41184.0,0.00027005]
[1610127035501,0.44613621,41185.0,41183.0,0.00027005]
[1610127035702,0.44613621,41185.0,41184.0,0.00027005]
[1610127036302,0.44613621,41185.0,41180.0,0.00027005]
[1610127036502,0.44613621,41185.0,41184.0,0.00027005]
[1610127036703,0.44613621,41185.0,41181.0,0.00027005]
[1610127037004,0.44613621,41185.0,41184.0,0.00027005]
[1610127037204,0.44613621,41185.0,41182.0,0.00027005]
[1610127037504,0.44613621,41185.0,41180.0,0.02993388]
[1610127037704,0.44613621,41185.0,41183.0,0.00027005]
[1610127038105,0.44613621,41185.0,41180.0,0.02993388]
[1610127038306,0.44613621,41185.0,41184.0,0.00027005]
[1610127038607,0.44613621,41185.0,41181.0,0.00027005]
[1610127038806,0.44613621,41185.0,41184.0,0.00027005]
[1610127039106,0.44613621,41185.0,41182.0,0.00027005]
[1610127039306,0.44613621,41185.0,41184.0,0.00027005]
[1610127039707,0.44613621,41185.0,41180.0,0.02993388]
[1610127039907,0.44613621,41185.0,41184.0,0.00027005]
[1610127040107,0.44613621,41185.0,41181.0,0.00027005]
[1610127040407,0.44613621,41185.0,41180.0,0.02993388]
[1610127040607,0.44613621,41185.0,41182.0,0.00027005]
[1610127041009,0.44613621,41185.0,41180.0,0.02993388]
[1610127041210,0.44613621,41185.0,41183.0,0.00027005]
[1610127041509,0.44613621,41185.0,41181.0,0.00027005]
[1610127041710,0.44613621,41185.0,41184.0,0.00027005]
[1610127042510,0.44613621,41185.0,41180.0,0.02966383]
[1610127042511,0.44613621,41185.0,41180.0,0.02993388]
[1610127042711,0.44613621,41185.0,41184.0,0.00027005]
[1610127043011,0.44613621,41185.0,41180.0,0.02993388]
[1610127043515,0.44613621,41185.0,41181.0,0.00027005]
[1610127043912,0.44613621,41185.0,41180.0,0.02993388]
[1610127044112,0.44613621,41185.0,41182.0,0.00027005]
[1610127044312,0.44613621,41185.0,41181.0,0.00027005]
[1610127044613,0.44613621,41185.0,41180.0,0.02993388]
[1610127044814,0.44613621,41185.0,41182.0,0.00027005]
[1610127045216,0.44613621,41185.0,41180.0,0.02993388]
[1610127045517,0.44613621,41185.0,41183.0,0.00027005]
[1610127045715,0.44613621,41185.0,41184.0,3.0608]
[1610127045915,0.44613621,41185.0,41184.0,3.06107005]
[1610127050518,0.31007064,41185.0,41184.0,3.06107005]
[1610127051521,0.31007064,41185.0,41184.0,3.1184926]
[1610127052220,0.31007064,41185.0,41184.0,4.75481868]
[1610127053522,0.31007064,41185.0,41184.0,4.75460015]
[1610127055525,0.31007064,41185.0,41184.0,3.1971776]
[1610127056125,0.31007064,41185.0,41184.0,4.6971776]
[1610127057226,0.31007064,41185.0,41184.0,3.1971776]
[1610127058328,0.44639672,41185.0,41184.0,3.1971776]
[1610127059228,0.31007064,41185.0,41184.0,3.1971776]
[1610127073541,0.31007064,41185.0,41184.0,0.13659613]
[1610127073742,0.31007064,41185.0,41184.0,4.06869613]
[1610127076045,0.31007064,41185.0,41184.0,5.56869613]
[1610127076746,0.31007064,41185.0,41184.0,5.62572595]
[1610127077148,0.31007064,41185.0,41184.0,4.12572595]
[1610127077948,0.31007064,41185.0,41184.0,5.62572595]
[1610127080652,0.31007064,41185.0,41184.0,5.71034254]
[1610127082554,0.31007064,41185.0,41184.0,5.62572595]
[1610127082753,0.13632608,41228.0,41184.0,5.62572595]
[1610127083154,0.13632608,41228.0,41185.0,0.0869205]
[1610127083456,0.13632608,41228.0,41192.0,4.0459]
[1610127083685,0.13632608,41228.0,41192.0,4.15813]
[1610127083885,0.13632608,41228.0,41193.0,0.08691905]
[1610127084270,0.13632608,41202.0,41201.0,0.13632608]
[1610127084660,0.1111,41223.0,41201.0,0.13632608]
[1610127084859,0.1111,41223.0,41201.0,3.57664324]
[1610127085059,0.1111,41223.0,41202.0,0.02991793]
[1610127085961,0.1111,41223.0,41202.0,0.11001793]
[1610127086361,0.1111,41223.0,41216.0,0.13632608]
[1610127086561,0.1111,41223.0,41218.0,0.4476]
[1610127086960,0.1111,41223.0,41219.0,0.00026916]
[1610127087366,0.1111,41223.0,41222.0,3.9637]
[1610127087664,0.1111,41223.0,41222.0,3.96396909]
[1610127087864,0.09182,41235.0,41222.0,3.96396909]
[1610127088265,0.2893,41244.0,41223.0,0.13659517]
[1610127088764,0.2893,41244.0,41224.0,0.00026909]
[1610127090167,0.2893,41244.0,41232.0,2.9125]
[1610127090367,0.13632608,41233.0,41232.0,3.04882608]
[1610127090868,0.13632608,41233.0,41232.0,3.04909514]
[1610127092670,0.11369,41238.0,41232.0,3.04909514]
[1610127093269,0.11369,41238.0,41233.0,0.00026906]
[1610127094172,0.11369,41238.0,41232.0,2.87739072]
[1610127094372,0.11369,41238.0,41237.0,0.13632608]
[1610127094872,0.13632608,41243.0,41237.0,0.13659502]
[1610127095073,0.2757,41268.0,41237.0,0.13659502]
[1610127095271,0.2757,41268.0,41248.0,3.5642]
[1610127096572,0.2757,41268.0,41237.0,0.13632608]
[1610127096573,0.2757,41268.0,41261.0,0.5045]
[1610127097377,0.2757,41268.0,41258.0,0.13632608]
[1610127097576,0.36443,41268.0,41258.0,0.13632608]
[1610127097776,0.36443,41268.0,41267.0,2.7265]
[1610127097981,0.08873,41268.0,41267.0,2.7265]
[1610127098381,0.08873,41268.0,41267.0,2.86282608]
[1610127099077,0.13632608,41273.0,41267.0,2.86282608]
[1610127099278,0.00709353,41292.0,41267.0,2.86282608]
[1610127099279,0.00292142,41297.0,41267.0,2.86309488]
[1610127099477,0.00292142,41297.0,41268.0,0.0002688]
[1610127099679,0.01002205,41300.0,41268.0,0.0002688]
[1610127099879,0.01003008,41303.0,41268.0,0.0002688]
[1610127100081,0.01003008,41303.0,41286.0,3.4082]
[1610127100284,0.00292629,41304.0,41268.0,0.0002688]
[1610127100482,0.00292629,41304.0,41294.0,2.9331]
[1610127100882,0.00292315,41303.0,41294.0,2.9331]
[1610127101081,0.11144,41303.0,41294.0,2.9331]
[1610127102485,0.13632608,41295.0,41294.0,2.9331]
[1610127106388,0.13632608,41295.0,41294.0,3.06942608]
[1610127110995,0.11144,41303.0,41294.0,3.06942608]
[1610127111195,0.283,41308.0,41294.0,3.06942608]
[1610127111396,0.283,41308.0,41294.0,2.9331]
[1610127111796,0.283,41308.0,41280.0,0.10911]
[1610127112102,0.37624,41308.0,41280.0,0.10911]
[1610127112495,0.09324,41308.0,41300.0,0.13632608]
[1610127113196,0.09324,41308.0,41307.0,3.1415]
[1610127114600,0.09324,41308.0,41307.0,3.27782608]
[1610127114799,0.13632608,41313.0,41307.0,3.27782608]
[1610127116405,0.13632608,41313.0,41312.0,0.13632608]
[1610127120009,0.13662198,41313.0,41312.0,0.13632608]
[1610127121810,0.13632608,41313.0,41312.0,0.13632608]
[1610127122412,0.13662196,41313.0,41312.0,0.13632608]
[1610127123414,0.13632608,41313.0,41312.0,0.13632608]
[1610127124616,0.2773,41333.0,41298.0,0.07692]
[1610127124617,0.13632608,41308.0,41303.0,2.9953]
[1610127125616,0.00029592,41307.0,41303.0,2.9953]
[1610127126616,0.01982346,41307.0,41303.0,2.9953]
[1610127128021,0.01982346,41307.0,41270.0,3.7832]
[1610127128622,0.01982346,41307.0,41271.0,0.13632608]
[1610127128825,0.30592346,41307.0,41286.0,3.4614]
[1610127129024,0.2861,41307.0,41271.0,0.13632608]
[1610127129222,0.01982831,41306.0,41305.0,3.2931]
[1610127129425,0.11952831,41306.0,41271.0,0.13632608]
[1610127129930,0.00029596,41305.0,41271.0,1.63632608]
[1610127130138,0.12523,41315.0,41305.0,3.6036]
[1610127130323,0.2889,41338.0,41305.0,3.6036]
[1610127130525,0.2889,41338.0,41318.0,0.13632608]
[1610127130927,0.01981816,41337.0,41329.0,3.5766]
[1610127131226,0.14280816,41337.0,41329.0,3.5766]
[1610127131629,0.0198167,41336.0,41329.0,3.5766]
[1610127132326,0.0198167,41336.0,41318.0,0.13632608]
[1610127132529,0.0198167,41336.0,41324.0,0.13632608]
[1610127132729,0.0198167,41336.0,41330.0,3.3707]
[1610127133030,0.0198167,41336.0,41324.0,0.13632608]
[1610127133734,0.0198167,41336.0,41333.0,3.741]
[1610127133934,0.0198167,41336.0,41324.0,0.13632608]
[1610127134536,0.00029581,41336.0,41331.0,0.13632608]
[1610127134735,0.00029574,41335.0,41331.0,0.13632608]
[1610127135235,0.00029574,41336.0,41331.0,0.13632608]
[1610127135535,0.12299,41337.0,41331.0,0.13632608]
[1610127135837,0.00029574,41335.0,41331.0,0.13632608]
[1610127136036,0.12299,41337.0,41331.0,0.13632608]
[1610127136037,0.00029574,41336.0,41331.0,0.13632608]
[1610127136336,0.00029574,41334.0,41331.0,0.13632608]
[1610127136538,0.13632608,41332.0,41331.0,0.13632608]
[1610127136939,0.13662182,41332.0,41331.0,0.13632608]
[1610127137139,0.13662182,41332.0,41329.0,3.1251]
[1610127137740,0.00029574,41331.0,41329.0,3.1251]
[1610127141144,0.13632608,41332.0,41329.0,3.1251]
[1610127142844,0.00029572,41331.0,41329.0,3.1251]
[1610127144545,0.00029572,41331.0,41330.0,0.13632608]
[1610127144744,0.13632608,41332.0,41330.0,0.13632608]
[1610127145044,0.00029572,41331.0,41330.0,0.13632608]
[1610127145244,0.13632608,41332.0,41330.0,0.13632608]
[1610127146849,0.13632608,41332.0,41318.0,0.08122]
[1610127147054,0.13632608,41332.0,41316.0,2.7288]
[1610127147285,0.09648,41337.0,41302.0,0.10923]
[1610127147458,3.1313,41329.0,41294.0,3.6054]
[1610127147851,0.00029582,41328.0,41294.0,3.6054]
[1610127148166,0.10630582,41328.0,41294.0,3.6054]
[1610127148652,0.13632608,41295.0,41294.0,3.6054]
[1610127148851,0.21903608,41295.0,41294.0,3.6054]
[1610127149250,0.21903608,41295.0,41263.0,0.1569]
[1610127149450,0.21903608,41295.0,41277.0,3.6158]
[1610127150355,0.21903608,41295.0,41278.0,0.00026774]
[1610127150758,0.13632608,41279.0,41277.0,3.75212608]
[1610127150953,0.24703608,41279.0,41277.0,3.75212608]
[1610127152053,0.24703608,41279.0,41277.0,3.6158]
[1610127154556,0.24703608,41279.0,41257.0,0.13632608]
[1610127154759,0.13632608,41258.0,41257.0,0.13632608]
[1610127155157,0.13632608,41258.0,41252.0,2.836]
[1610127155559,0.13632608,41258.0,41253.0,0.00026787]
[1610127158961,0.13632608,41258.0,41252.0,2.836]
[1610127159562,0.09179,41264.0,41248.0,0.13632608]
[1610127159863,0.09179,41264.0,41257.0,3.4495]
[1610127160164,0.11071,41279.0,41257.0,3.4495]
[1610127160361,0.2823,41286.0,41257.0,3.4495]
[1610127160763,0.13632608,41271.0,41263.0,0.13632608]
[1610127162265,0.13632608,41271.0,41266.0,0.4619]
[1610127162667,0.08576,41275.0,41270.0,0.13632608]
[1610127163665,0.08576,41275.0,41266.0,0.4619]
[1610127164766,0.13632608,41269.0,41266.0,0.4619]
[1610127168569,0.13632608,41269.0,41261.0,0.13632608]
[1610127168771,0.13632608,41262.0,41255.0,2.98962608]
[1610127168970,0.24681608,41262.0,41255.0,2.98962608]
[1610127170780,0.13632608,41256.0,41255.0,2.98962608]
[1610127172270,0.11049,41262.0,41255.0,2.98962608]
[1610127173185,0.11049,41262.0,41255.0,2.8533]
[1610127174072,0.08576,41275.0,41255.0,2.8533]
[1610127174378,4.2981,41286.0,41255.0,2.8533]
[1610127174773,0.13632608,41260.0,41255.0,2.8533]
[1610127175674,0.13632608,41260.0,41256.0,0.00026787]
[1610127189185,0.13632608,41260.0,41245.0,3.1189]
[1610127189186,0.5725,41259.0,41246.0,0.00027467]
[1610127189385,0.13632608,41260.0,41208.0,0.1569]
[1610127189586,0.13632608,41260.0,41236.0,3.9099]
[1610127190086,0.13632608,41260.0,41237.0,0.00027468]
[1610127190785,0.13632608,41238.0,41237.0,0.00027468]
[1610127191586,0.13632608,41238.0,41237.0,0.4908]
[1610127191987,0.13632608,41238.0,41237.0,0.4910747]
[1610127195193,0.13632608,41238.0,41237.0,0.0002747]
[1610127195598,0.13632608,41238.0,41232.0,0.0002747]
[1610127195806,0.13632608,41238.0,41237.0,0.0002747]
[1610127196196,0.13632608,41238.0,41232.0,0.0002747]
[1610127196493,0.13632608,41238.0,41237.0,0.0002747]
[1610127196692,3.52742608,41238.0,41233.0,0.00027472]
[1610127196895,3.52742608,41238.0,41237.0,0.00027474]
[1610127197191,3.52742608,41238.0,41219.0,4.0066]
[1610127197192,3.52742608,41238.0,41234.0,0.00027474]
[1610127197412,3.52742608,41238.0,41237.0,0.00027478]
[1610127197794,3.52742608,41238.0,41235.0,0.0002748]
[1610127197994,3.52742608,41238.0,41219.0,4.0066]
[1610127198400,0.13632608,41238.0,41195.0,0.09102]
[1610127198598,2.795,41223.0,41220.0,0.00027482]
[1610127198799,2.795,41223.0,41200.0,3.5931]
[1610127199097,2.909,41216.0,41201.0,0.0296338]
[1610127199298,0.13632608,41221.0,41201.0,0.00027484]
[1610127199599,3.7459,41217.0,41202.0,0.00027484]
[1610127200097,3.7459,41217.0,41193.0,0.00027486]
[1610127200298,3.7459,41217.0,41203.0,0.00027486]
[1610127200699,3.7459,41217.0,41194.0,0.00027486]
[1610127200898,3.7459,41217.0,41204.0,0.00027486]
[1610127201098,3.7459,41217.0,41195.0,0.00027486]
[1610127201600,3.7459,41217.0,41196.0,0.00027487]
[1610127202001,3.7459,41217.0,41193.0,0.00027487]
[1610127202200,3.7459,41217.0,41197.0,0.00027487]
[1610127202400,3.7459,41217.0,41194.0,0.00027487]
[1610127202801,3.7459,41217.0,41193.0,0.00027487]
[1610127203102,0.13632608,41194.0,41192.0,0.13632608]
[1610127203501,0.13632608,41194.0,41193.0,0.00027488]
[1610127205104,0.58832608,41194.0,41185.0,0.13632608]
[1610127205805,0.68001608,41194.0,41186.0,0.00027489]
[1610127206905,0.13632608,41187.0,41186.0,0.00027489]
[1610127208009,0.13632608,41187.0,41184.0,0.03]
[1610127208010,3.53172608,41187.0,41184.0,0.03]
[1610127208211,3.53172608,41187.0,41186.0,0.00027495]
[1610127208913,3.53172608,41187.0,41186.0,0.00054992]
[1610127209912,3.53172608,41187.0,41186.0,0.00027495]
[1610127211316,0.13632608,41187.0,41186.0,0.00027495]
[1610127211617,0.13632608,41187.0,41186.0,3.12617495]
[1610127213324,0.13632608,41187.0,41186.0,0.00027495]
[1610127215723,0.13632608,41187.0,41186.0,0.46997495]
[1610127217025,0.13632608,41187.0,41186.0,0.60630103]
[1610127218829,0.13632608,41187.0,41186.0,0.46997495]
[1610127219028,0.13632608,41187.0,41186.0,0.00027495]
[1610127220630,0.13632608,41187.0,41183.0,3.8154]
[1610127223132,0.13632608,41187.0,41186.0,0.13632608]
[1610127226939,0.13632608,41187.0,41171.0,0.0787]
[1610127227134,0.13632608,41182.0,41171.0,0.0787]
[1610127227337,0.22616608,41182.0,41171.0,0.0787]
[1610127227536,0.22616608,41182.0,41172.0,0.00027499]
[1610127229037,0.13632608,41173.0,41172.0,0.00027499]
[1610127232142,0.13632608,41173.0,41172.0,0.55187499]
[1610127234944,0.13632608,41173.0,41172.0,0.58152855]
[1610127236148,0.13632608,41173.0,41172.0,0.55187499]
[1610127236649,0.13632608,41173.0,41172.0,0.58152931]
[1610127236852,0.13632608,41173.0,41172.0,0.02992931]
[1610127237352,0.13632608,41173.0,41172.0,0.00027499]
[1610127237553,0.22301608,41173.0,41172.0,0.00027499]
[1610127237953,0.67141608,41173.0,41172.0,0.00027499]
[1610127238353,0.22301608,41173.0,41172.0,0.00027499]
[1610127238554,3.72401608,41173.0,41172.0,0.00027499]
[1610127239857,3.72401608,41173.0,41171.0,0.0787]
[1610127240256,3.72431289,41173.0,41136.0,3.8273]
[1610127240455,0.00029683,41172.0,41143.0,0.0002]
[1610127240656,3.6732,41153.0,41143.0,0.0002]
[1610127240873,3.75745,41153.0,41143.0,0.0002]
[1610127241055,0.13632608,41144.0,41143.0,0.0002]
[1610127241356,0.23755608,41144.0,41143.0,0.0002]
[1610127245559,3.63715608,41144.0,41143.0,0.0002]
[1610127248364,3.63715608,41144.0,41081.0,0.12412]
[1610127248568,3.63715608,41144.0,41099.0,0.0002]
[1610127248766,0.23755608,41144.0,41099.0,0.0002]
[1610127249068,1.5,41143.0,41099.0,0.0002]
[1610127249262,3.90222608,41100.0,41099.0,0.0002]
[1610127249461,3.99477608,41100.0,41099.0,0.0002]
[1610127251366,3.99477608,41100.0,41043.0,3.3097]
[1610127251675,3.99477608,41100.0,40981.0,0.3195]
[1610127251676,0.22887608,41100.0,41032.0,0.0002]
[1610127251865,2.8927,41055.0,41032.0,0.0002]
[1610127252065,2.97959,41055.0,41032.0,0.0002]
[1610127252266,0.08689,41055.0,41032.0,0.0002]
[1610127252471,3.0937,41033.0,41032.0,0.0002]
[1610127253868,3.23002608,41033.0,41032.0,0.0002]
[1610127254066,0.13632608,41033.0,41032.0,0.0002]
[1610127255469,0.08604,41045.0,41032.0,0.0002]
[1610127255871,0.08604,41045.0,41037.0,0.13632608]
[1610127256671,0.5807,41094.0,41034.0,0.12517]
[1610127257774,0.5807,41094.0,41032.0,0.0002]
[1610127257775,0.13632608,41039.0,41032.0,0.0002]
[1610127259573,0.1049,41045.0,41032.0,0.0002]
[1610127259773,0.13632608,41042.0,41041.0,0.13632608]
[1610127260379,0.09145,41056.0,41041.0,0.13632608]
[1610127260977,0.2818,41089.0,41041.0,0.21801608]
[1610127261378,0.2818,41089.0,41049.0,2.894]
[1610127261778,0.2818,41089.0,41063.0,0.13632608]
[1610127263081,0.2818,41089.0,41059.0,0.12717]
[1610127263280,3.8374,41085.0,41059.0,0.12717]
[1610127263807,0.13632608,41042.0,41041.0,0.08169]
[1610127264582,3.2017,41060.0,41041.0,0.08169]
[1610127265183,3.2017,41060.0,41016.0,3.1027]
[1610127265784,0.13632608,41033.0,41018.0,0.13632608]
[1610127267185,0.13632608,41033.0,41016.0,3.1027]
[1610127268186,0.13632608,41033.0,41032.0,0.0002]
[1610127279504,3.33372608,41033.0,41032.0,0.0002]
[1610127280303,3.35362012,41033.0,41032.0,0.0002]
[1610127280914,3.41316268,41033.0,41032.0,0.0002]
[1610127281204,3.41316268,41033.0,40974.0,0.08679]
[1610127281516,0.2981,41031.0,40974.0,0.08679]
[1610127281707,3.7327,40975.0,40974.0,0.08679]
[1610127281908,3.7327,40975.0,40974.0,9e-05]
[1610127281909,3.86902608,40975.0,40974.0,9e-05]
[1610127282104,3.86902608,40975.0,40908.0,3.1867]
[1610127282406,3.6043,40939.0,40907.0,0.1569]
[1610127282604,0.01991183,40974.0,40907.0,0.1569]
[1610127282805,0.09381183,40974.0,40907.0,0.27638]
[1610127283008,0.09351381,40974.0,40908.0,3.2911]
[1610127283407,0.00029804,40973.0,40908.0,3.2911]
[1610127283605,0.00029804,40973.0,40907.0,0.27638]
[1610127283806,3.5386,40964.0,40907.0,0.27638]
[1610127284207,3.5386,40964.0,40907.0,0.11948]
[1610127285009,3.5386,40964.0,40908.0,0.00026986]
[1610127285208,3.5386,40964.0,40907.0,0.11948]
[1610127285915,0.13632608,40908.0,40907.0,0.11948]
[1610127286112,3.5386,40964.0,40907.0,0.11948]